fUSD/lending_fUSD_20240427
["ID","MTS","AMOUNT","RATE_DAILY","PERIOD"]
[323731805,1714215041499,-413.995674,0.00011227,2]
[323731806,1714215041509,-182.203264,0.00011227,2]
[323731807,1714215041517,-413.995674,0.00011227,2]
[323731808,1714215041526,-413.995674,0.00011227,2]
[323731809,1714215041535,-413.995674,0.00011227,2]
[323731810,1714215041544,-500.0,0.00011227,2]
[323731811,1714215041553,-500.0,0.00011227,2]
[323731812,1714215041562,-500.0,0.00011227,2]
[323731813,1714215041571,-413.995674,0.00011227,2]
[323731814,1714215041579,-413.995674,0.00011227,2]
[323731815,1714215041588,-413.995674,0.00011227,2]
[323731816,1714215041597,-413.995674,0.00011227,2]
[323731817,1714215041606,-413.995674,0.00011227,2]
[323731818,1714215041615,-413.995674,0.00011227,2]
[323731819,1714215041623,-413.995674,0.00011227,2]
[323731820,1714215041632,-413.995674,0.00011227,2]
[323731821,1714215041641,-500.0,0.00011227,2]
[323731822,1714215041654,-500.0,0.00011227,2]
[323731823,1714215041663,-503.05806067,0.00011227,2]
[323731824,1714215041672,-7284.85,0.00011227,2]
[323731825,1714215041681,-538.76140872,0.00011227,2]
[323731826,1714215041691,-500.0,0.00011227,2]
[323731827,1714215041700,-500.0,0.00011227,2]
[323731828,1714215041709,-500.0,0.00011227,2]
[323731829,1714215041718,-540.8,0.00011227,2]
[323731830,1714215041727,-2212.84,0.00011227,2]
[323731831,1714215041737,-500.0,0.00011228,2]
[323731832,1714215041746,-500.0,0.00011228,2]
[323731833,1714215041755,-500.0,0.00011228,2]
[323731834,1714215041764,-500.0,0.00011228,2]
[323731835,1714215041773,-573.49650135,0.00011228,2]
[323731836,1714215041783,-151.0,0.00011228,2]
[323731837,1714215041792,-151.0,0.00011228,2]
[323731838,1714215041802,-151.0,0.00011228,2]
[323731839,1714215041811,-151.0,0.00011228,2]
[323731840,1714215041821,-151.0,0.00011228,2]
[323731841,1714215041831,-151.0,0.00011228,2]
[323731842,1714215041840,-151.0,0.00011228,2]
[323731843,1714215041850,-282.989405,0.00011228,2]
[323731844,1714215041860,-500.0,0.00011228,2]
[323731845,1714215041870,-151.0,0.00011228,2]
[323731846,1714215041880,-596.991825,0.00011228,2]
[323731847,1714215041889,-596.991825,0.00011228,2]
[323731848,1714215041898,-596.991825,0.00011228,2]
[323731849,1714215041907,-596.991825,0.00011228,2]
[323731850,1714215041916,-596.991825,0.00011228,2]
[323731851,1714215041926,-596.991825,0.00011228,2]
[323731852,1714215041935,-596.991825,0.00011228,2]
[323731853,1714215041945,-596.991825,0.00011228,2]
[323731854,1714215041954,-596.991825,0.00011228,2]
[323731855,1714215041964,-596.991825,0.00011228,2]
[323731856,1714215041974,-1365.56718,0.00011228,2]
[323731857,1714215041985,-1365.56718,0.00011228,2]
[323731858,1714215041994,-1365.56718,0.00011228,2]
[323731859,1714215042004,-1365.56718,0.00011228,2]
[323731860,1714215042015,-1365.56718,0.00011228,2]
[323731861,1714215042024,-1365.56718,0.00011228,2]
[323731862,1714215042034,-1365.56718,0.00011228,2]
[323731863,1714215042044,-1365.56718,0.00011228,2]
[323731864,1714215042055,-165.362571,0.00011228,2]
[323731865,1714215042065,-365.074974,0.00011228,2]
[323731866,1714215042075,-365.074974,0.00011228,2]
[323731867,1714215042085,-365.074974,0.00011228,2]
[323731868,1714215042094,-365.074974,0.00011228,2]
[323731869,1714215042103,-365.074974,0.00011228,2]
[323731870,1714215042113,-365.074974,0.00011228,2]
[323731871,1714215042122,-151.0,0.00011228,2]
[323731872,1714215042131,-151.0,0.00011228,2]
[323731873,1714215042141,-151.0,0.00011228,2]
[323731874,1714215042151,-151.0,0.00011228,2]
[323731875,1714215042160,-151.0,0.00011228,2]
[323731876,1714215042169,-182.007671,0.00011228,2]
[323731877,1714215042179,-251.591952,0.00011228,2]
[323731878,1714215042188,-251.591952,0.00011228,2]
[323731879,1714215042197,-251.591952,0.00011228,2]
[323731880,1714215042207,-251.591942,0.00011228,2]
[323731881,1714215042216,-500.0,0.00011228,2]
[323731882,1714215042225,-1027.297794,0.00011228,2]
[323731883,1714215042234,-1027.297794,0.00011228,2]
[323731884,1714215042243,-1027.297794,0.00011228,2]
[323731885,1714215042252,-1027.29779,0.00011228,2]
[323731886,1714215042262,-171.542757,0.00011228,2]
[323731887,1714215042271,-171.542757,0.00011228,2]
[323731888,1714215042281,-298.44410942,0.00011228,2]
[323731889,1714215042290,-413.995674,0.00011228,2]
[323731890,1714215042299,-413.995674,0.00011228,2]
[323731891,1714215042309,-880.0,0.00011229,2]
[323731892,1714215042319,-151.0,0.00011229,2]
[323731893,1714215042328,-596.991825,0.00011229,2]
[323731894,1714215042338,-596.991816,0.00011229,2]
[323731895,1714215042347,-1365.56718,0.00011229,2]
[323731896,1714215042356,-1365.56717,0.00011229,2]
[323731897,1714215042366,-58111.31735417,0.00011229,2]
[323731898,1714215042380,-53496.06895209,0.00011229,2]
[323731899,1714215042399,-59162.83958149,0.00011229,2]
[323731900,1714215042410,-2902.90000322,0.00011229,2]
[323731904,1714215043414,-374.80998212,0.00011226,2]
[323731905,1714215043427,-29.94810683,0.00011229,2]
[323731906,1714215043441,-864.89612263,0.00011229,2]
[323731907,1714215043456,-286.4849995,0.00011229,2]
[323731908,1714215043470,-401.98070092,0.00011229,2]
[323731909,1714215043484,-287.32536074,0.00011229,2]
[323731910,1714215043498,-5240.08156891,0.00011229,2]
[323731911,1714215043512,-1995.34,0.00011229,2]
[323731912,1714215043528,-500.0,0.00011229,2]
[323731913,1714215043543,-621.18372665,0.00011229,2]
[323731914,1714215043568,-20868.48,0.00011229,2]
[323731915,1714215043690,-6488.08632,0.00011229,2]
[323731916,1714215043747,-278.16548255,0.00011229,2]
[323731917,1714215043761,-49475.31976843,0.00011229,2]
[323731939,1714215046577,-298.84757904,0.0001,2]
[323731940,1714215046589,-274.58255861,0.00011227,2]
[323731941,1714215046604,-225.41744139,0.00011227,2]
[323731942,1714215046614,-254.39267036,0.00011229,2]
[323731943,1714215046629,-585.79333653,0.00011229,2]
[323731944,1714215046652,-466.98336431,0.00011229,2]
[323731945,1714215046663,-6688.98646078,0.00011229,2]
[323731947,1714215046675,-2303.75270085,0.00011229,2]
[323731949,1714215046687,-454.68489641,0.00011229,2]
[323731950,1714215046702,-440.74979347,0.00011229,2]
[323731951,1714215046714,-16747.61242291,0.00011229,2]
[323731952,1714215046725,-417.92107087,0.00011229,2]
[323731953,1714215046736,-2017.62724224,0.00011229,2]
[323731954,1714215046749,-1018.21757617,0.00011229,2]
[323731955,1714215046768,-466.70474391,0.00011229,2]
[323731956,1714215046780,-4661.85,0.00011229,2]
[323731960,1714215304986,155.25,8.234e-05,2]
[323731963,1714215666999,692.657102,8.234e-05,2]
[323731964,1714215898870,155.25,8.219e-05,2]
[323731997,1714216232272,-427.33773077,0.00010035,2]
[323731998,1714216232281,-466.91876197,0.00010036,2]
[323731999,1714216232325,-501.08810123,0.00010036,2]
[323732000,1714216232335,-165.46716698,0.00010038,2]
[323732001,1714216232347,-460.13,0.00010097,2]
[323732002,1714216232356,-188.82,0.00010102,2]
[323732003,1714216232369,-222.42,0.00010102,2]
[323732004,1714216232378,-640.0,0.00010137,2]
[323732005,1714216232388,-186.95,0.00010147,2]
[323732006,1714216232398,-10528.07933013,0.00010311,2]
[323732007,1714216232407,-1782.97,0.0001063,10]
[323732008,1714216232417,-155.25,0.00010748,2]
[323732009,1714216232428,-155.0,0.000109,2]
[323732010,1714216232438,-2750.0,0.00011,3]
[323732011,1714216232448,-26361.72086234,0.00011,2]
[323732012,1714216232459,-1771.536,0.00011,2]
[323732013,1714216232471,-598.11050968,0.00011,2]
[323732014,1714216232484,-2605.49343482,0.00011,2]
[323732015,1714216232495,-5220.66047993,0.00011,2]
[323732016,1714216232517,-27836.70230425,0.00011,2]
[323732017,1714216232529,-935.11650011,0.00011,2]
[323732018,1714216232540,-1302.24553177,0.00011,2]
[323732019,1714216232556,-317.625,0.00011,2]
[323732020,1714216232568,-8806.91579236,0.00011,2]
[323732028,1714216237820,-733.89705618,0.00011,2]
[323732029,1714216237832,-31414.99999999,0.00011,2]
[323732030,1714216237843,-1212.44106413,0.00011,2]
[323732031,1714216237854,-2170.09836297,0.00011,2]
[323732032,1714216237865,-378.61802541,0.00011,2]
[323732033,1714216237878,-4022.7165844,0.00011,2]
[323732038,1714216238046,-9797.85808281,0.00011,2]
[323732042,1714216239628,-773.56546722,0.00011,2]
[323732043,1714216239637,-150.0,0.00011092,2]
[323732044,1714216239647,-150.0,0.00011103,2]
[323732045,1714216239657,-150.0,0.00011107,2]
[323732046,1714216239667,-150.0,0.00011107,2]
[323732047,1714216239676,-150.0,0.0001111,2]
[323732048,1714216239686,-300.0,0.0001111,2]
[323732049,1714216239695,-150.0,0.00011114,2]
[323732050,1714216239705,-164.37354978,0.00011116,2]
[323732051,1714216239714,-150.0,0.00011121,2]
[323732052,1714216239723,-284.85009614,0.00011122,2]
[323732053,1714216239733,-150.0,0.00011123,2]
[323732054,1714216239742,-150.0,0.00011123,2]
[323732055,1714216239751,-150.0,0.00011126,2]
[323732056,1714216239761,-150.0,0.00011127,2]
[323732057,1714216239770,-9519.4839,0.00011127,2]
[323732058,1714216239780,-72017.1342,0.00011127,2]
[323732059,1714216239789,-150.0,0.00011134,2]
[323732060,1714216239799,-150.0,0.00011135,2]
[323732061,1714216239808,-150.0,0.00011135,2]
[323732062,1714216239818,-150.0,0.00011136,2]
[323732063,1714216239827,-500.0,0.00011137,2]
[323732064,1714216239838,-500.0,0.00011137,2]
[323732065,1714216239847,-500.0,0.00011137,2]
[323732066,1714216239857,-997.7,0.00011137,2]
[323732067,1714216239866,-500.0,0.00011137,2]
[323732068,1714216239876,-500.0,0.00011137,2]
[323732069,1714216239885,-500.0,0.00011137,2]
[323732070,1714216239894,-500.0,0.00011137,2]
[323732071,1714216239903,-514.22,0.00011137,2]
[323732072,1714216239913,-500.0,0.00011137,2]
[323732073,1714216239922,-500.0,0.00011137,2]
[323732074,1714216239931,-500.0,0.00011137,2]
[323732075,1714216239941,-1291.83,0.00011137,2]
[323732076,1714216239950,-500.0,0.00011137,2]
[323732077,1714216239959,-500.0,0.00011137,2]
[323732078,1714216239968,-1673.7,0.00011137,2]
[323732079,1714216239977,-1879.4,0.00011137,2]
[323732080,1714216239986,-384.44187505,0.00011137,2]
[323732092,1714216242743,-500.0,0.00011136,2]
[323732093,1714216242752,-279.15,0.00011137,2]
[323732094,1714216242763,-463.83812495,0.00011137,2]
[323732095,1714216242772,-556.98,0.00011137,2]
[323732096,1714216242781,-141.16687505,0.00011137,2]
[323732097,1714216242800,-8.83312495,0.00011137,2]
[323732098,1714216242810,-500.0,0.00011137,2]
[323732100,1714216243037,-500.0,0.00011137,2]
[323732101,1714216243048,-828.05818893,0.00011137,2]
[323732139,1714216245721,-962.26181107,0.00011137,2]
[323732140,1714216245731,-500.0,0.00011137,2]
[323732141,1714216245741,-169.62233173,0.00011137,2]
[323732142,1714216245753,-330.37766827,0.00011137,2]
[323732143,1714216245763,-6304.96,0.00011137,2]
[323732144,1714216245773,-870.47,0.00011137,2]
[323732145,1714216245783,-500.0,0.00011137,2]
[323732146,1714216245793,-560.39,0.00011137,2]
[323732147,1714216245803,-150.0,0.00011138,2]
[323732148,1714216245814,-461.88,0.00011138,2]
[323732149,1714216245824,-282.95,0.00011138,2]
[323732151,1714216245834,-500.0,0.00011138,2]
[323732153,1714216245843,-500.0,0.00011138,2]
[323732154,1714216245854,-683.94,0.00011138,2]
[323732156,1714216245864,-500.0,0.00011138,2]
[323732158,1714216245877,-150.0,0.00011138,2]
[323732160,1714216245888,-500.0,0.00011138,2]
[323732162,1714216245898,-500.0,0.00011138,2]
[323732164,1714216245909,-500.0,0.00011138,2]
[323732166,1714216245918,-500.0,0.00011138,2]
[323732168,1714216245929,-500.0,0.00011138,2]
[323732169,1714216245939,-500.0,0.00011138,2]
[323732170,1714216245948,-500.0,0.00011138,2]
[323732171,1714216245958,-1190.33,0.00011138,2]
[323732172,1714216245967,-500.0,0.00011138,2]
[323732173,1714216245977,-857.51,0.00011138,2]
[323732174,1714216245987,-500.0,0.00011138,2]
[323732175,1714216245997,-1481.31,0.00011138,2]
[323732176,1714216246007,-1438.78,0.00011138,2]
[323732177,1714216246017,-500.0,0.00011138,2]
[323732178,1714216246028,-520.57581799,0.00011138,2]
[323732179,1714216246039,-500.0,0.00011138,2]
[323732180,1714216246049,-500.0,0.00011138,2]
[323732181,1714216246059,-855.85,0.00011138,2]
[323732182,1714216246068,-500.0,0.00011138,2]
[323732183,1714216246078,-500.0,0.00011138,2]
[323732184,1714216246087,-620.57,0.00011138,2]
[323732185,1714216246096,-248.22497601,0.00011138,2]
[323732186,1714216246105,-541.6,0.00011138,2]
[323732187,1714216246116,-500.0,0.00011138,2]
[323732188,1714216246127,-500.0,0.00011138,2]
[323732189,1714216246138,-500.0,0.00011138,2]
[323732190,1714216246148,-500.0,0.00011138,2]
[323732191,1714216246159,-946.31,0.00011138,2]
[323732192,1714216246169,-500.0,0.00011138,2]
[323732193,1714216246178,-1344.06,0.00011138,2]
[323732194,1714216246190,-1274.36,0.00011138,2]
[323732195,1714216246201,-500.0,0.00011138,2]
[323732196,1714216246210,-2471.34,0.00011138,2]
[323732197,1714216246220,-616.72,0.00011138,2]
[323732198,1714216246232,-500.0,0.00011138,2]
[323732199,1714216246242,-835.85,0.00011138,2]
[323732200,1714216246253,-500.0,0.00011138,2]
[323732201,1714216246264,-620.08,0.00011138,2]
[323732202,1714216246274,-500.0,0.00011138,2]
[323732203,1714216246285,-500.0,0.00011138,2]
[323732204,1714216246296,-1276.04,0.00011138,2]
[323732205,1714216246307,-546.36,0.00011138,2]
[323732206,1714216246317,-500.0,0.00011138,2]
[323732207,1714216246327,-500.0,0.00011138,2]
[323732208,1714216246338,-500.0,0.00011138,2]
[323732209,1714216246350,-500.0,0.00011138,2]
[323732210,1714216246360,-3532.36,0.00011138,2]
[323732211,1714216246370,-500.0,0.00011138,2]
[323732212,1714216246381,-500.0,0.00011138,2]
[323732213,1714216246390,-360.10387639,0.00011138,2]
[323732214,1714216246399,-500.0,0.00011138,2]
[323732215,1714216246409,-500.0,0.00011138,2]
[323732216,1714216246420,-500.0,0.00011138,2]
[323732217,1714216246431,-7433.24,0.00011138,2]
[323732218,1714216246440,-1000.0,0.00011138,2]
[323732219,1714216246451,-500.0,0.00011138,2]
[323732220,1714216246461,-1000.0,0.00011139,2]
[323732221,1714216246471,-150.0,0.00011139,2]
[323732222,1714216246481,-1000.0,0.00011139,2]
[323732223,1714216246490,-1000.0,0.00011139,2]
[323732224,1714216246500,-500.0,0.00011139,2]
[323732225,1714216246510,-500.0,0.00011139,2]
[323732226,1714216246520,-500.0,0.00011142,2]
[323732227,1714216246529,-500.0,0.00011142,2]
[323732228,1714216246539,-500.0,0.00011142,2]
[323732229,1714216246549,-500.0,0.00011142,2]
[323732230,1714216246560,-699.08,0.00011142,2]
[323732231,1714216246569,-500.0,0.00011142,2]
[323732232,1714216246578,-910.55,0.00011142,2]
[323732233,1714216246588,-500.0,0.00011142,2]
[323732234,1714216246597,-500.0,0.00011142,2]
[323732235,1714216246607,-278.89,0.00011142,2]
[323732236,1714216246617,-500.0,0.00011142,2]
[323732237,1714216246628,-500.0,0.00011142,2]
[323732238,1714216246638,-500.0,0.00011142,2]
[323732239,1714216246648,-500.0,0.00011142,2]
[323732240,1714216246658,-505.55166157,0.00011142,2]
[323732241,1714216246668,-207.0247539,0.00011142,2]
[323732242,1714216246678,-500.0,0.00011142,2]
[323732243,1714216246688,-500.0,0.00011142,2]
[323732244,1714216246698,-500.0,0.00011142,2]
[323732245,1714216246707,-500.0,0.00011142,2]
[323732246,1714216246717,-500.0,0.00011142,2]
[323732247,1714216246727,-500.0,0.00011142,2]
[323732248,1714216246737,-500.0,0.00011142,2]
[323732249,1714216246747,-508.29008182,0.00011142,2]
[323732250,1714216246757,-500.0,0.00011142,2]
[323732251,1714216246767,-500.0,0.00011142,2]
[323732252,1714216246777,-500.0,0.00011142,2]
[323732253,1714216246788,-500.0,0.00011142,2]
[323732254,1714216246798,-216.77981573,0.00011142,2]
[323732255,1714216246809,-500.0,0.00011142,2]
[323732256,1714216246820,-500.0,0.00011142,2]
[323732257,1714216246830,-500.0,0.00011142,2]
[323732258,1714216246840,-500.0,0.00011142,2]
[323732259,1714216246850,-500.0,0.00011142,2]
[323732260,1714216246860,-500.0,0.00011142,2]
[323732261,1714216246869,-202.0,0.00011142,2]
[323732262,1714216246882,-471.03775123,0.00011142,2]
[323732263,1714216246891,-505.88183437,0.00011142,2]
[323732264,1714216246903,-500.0,0.00011142,2]
[323732265,1714216246914,-500.0,0.00011142,2]
[323732266,1714216246924,-500.0,0.00011142,2]
[323732267,1714216246933,-500.0,0.00011142,2]
[323732268,1714216246943,-589.26536761,0.00011142,2]
[323732269,1714216246955,-500.0,0.00011142,2]
[323732270,1714216246966,-500.0,0.00011142,2]
[323732271,1714216246978,-500.0,0.00011142,2]
[323732272,1714216246987,-500.0,0.00011142,2]
[323732273,1714216246997,-500.0,0.00011142,2]
[323732274,1714216247009,-500.0,0.00011142,2]
[323732275,1714216247019,-500.0,0.00011142,2]
[323732276,1714216247029,-500.0,0.00011142,2]
[323732277,1714216247039,-500.0,0.00011142,2]
[323732278,1714216247049,-500.0,0.00011142,2]
[323732279,1714216247059,-500.0,0.00011142,2]
[323732280,1714216247069,-500.0,0.00011142,2]
[323732281,1714216247078,-500.0,0.00011142,2]
[323732282,1714216247087,-500.0,0.00011142,2]
[323732283,1714216247096,-504.12784133,0.00011142,2]
[323732284,1714216247105,-500.0,0.00011142,2]
[323732285,1714216247115,-500.0,0.00011142,2]
[323732286,1714216247124,-500.0,0.00011142,2]
[323732287,1714216247133,-500.0,0.00011142,2]
[323732288,1714216247142,-507.06318018,0.00011142,2]
[323732289,1714216247151,-500.0,0.00011142,2]
[323732290,1714216247160,-543.42,0.00011142,2]
[323732291,1714216247169,-521.7363739,0.00011142,2]
[323732292,1714216247178,-384.54323858,0.00011142,2]
[323732293,1714216247187,-500.0,0.00011142,2]
[323732294,1714216247196,-450.14509909,0.00011142,2]
[323732295,1714216247205,-165.31206238,0.00011142,2]
[323732296,1714216247215,-500.0,0.00011142,2]
[323732297,1714216247224,-500.0,0.00011142,2]
[323732298,1714216247233,-500.0,0.00011142,2]
[323732299,1714216247243,-500.0,0.00011142,2]
[323732300,1714216247252,-500.0,0.00011142,2]
[323732301,1714216247261,-500.0,0.00011142,2]
[323732302,1714216247270,-501.21244979,0.00011142,2]
[323732303,1714216247280,-500.0,0.00011142,2]
[323732304,1714216247291,-257.47,0.00011142,2]
[323732305,1714216247301,-500.0,0.00011142,2]
[323732306,1714216247311,-504.59801459,0.00011142,2]
[323732307,1714216247322,-500.0,0.00011142,2]
[323732308,1714216247331,-151.0,0.00011142,2]
[323732309,1714216247340,-500.0,0.00011142,2]
[323732310,1714216247354,-500.0,0.00011142,2]
[323732311,1714216247363,-500.0,0.00011142,2]
[323732312,1714216247374,-500.0,0.00011142,2]
[323732313,1714216247383,-500.0,0.00011142,2]
[323732314,1714216247394,-500.0,0.00011142,2]
[323732315,1714216247403,-500.0,0.00011142,2]
[323732316,1714216247413,-500.0,0.00011142,2]
[323732317,1714216247422,-496.83,0.00011142,2]
[323732318,1714216247432,-500.0,0.00011142,2]
[323732319,1714216247441,-500.0,0.00011142,2]
[323732320,1714216247451,-500.0,0.00011142,2]
[323732321,1714216247461,-500.0,0.00011142,2]
[323732322,1714216247471,-560.64,0.00011142,2]
[323732323,1714216247481,-500.0,0.00011142,2]
[323732324,1714216247490,-500.92025584,0.00011142,2]
[323732325,1714216247500,-500.0,0.00011142,2]
[323732326,1714216247509,-500.0,0.00011142,2]
[323732327,1714216247519,-501.59399651,0.00011142,2]
[323732328,1714216247529,-503.16967958,0.00011142,2]
[323732329,1714216247539,-500.0,0.00011142,2]
[323732330,1714216247548,-544.1913715,0.00011142,2]
[323732331,1714216247557,-500.0,0.00011142,2]
[323732332,1714216247567,-500.0,0.00011142,2]
[323732333,1714216247577,-870.95,0.00011142,2]
[323732334,1714216247587,-503.75794463,0.00011142,2]
[323732335,1714216247597,-500.0,0.00011142,2]
[323732336,1714216247607,-500.0,0.00011142,2]
[323732337,1714216247616,-500.0,0.00011142,2]
[323732338,1714216247627,-500.0,0.00011142,2]
[323732339,1714216247636,-500.0,0.00011142,2]
[323732340,1714216247646,-500.0,0.00011142,2]
[323732341,1714216247654,-500.0,0.00011142,2]
[323732342,1714216247664,-500.0,0.00011142,2]
[323732343,1714216247673,-500.0,0.00011142,2]
[323732344,1714216247683,-500.0,0.00011142,2]
[323732345,1714216247692,-500.0,0.00011142,2]
[323732346,1714216247702,-500.0,0.00011142,2]
[323732347,1714216247711,-500.0,0.00011142,2]
[323732348,1714216247720,-500.0,0.00011142,2]
[323732349,1714216247730,-500.0,0.00011142,2]
[323732350,1714216247739,-500.0,0.00011142,2]
[323732351,1714216247748,-500.0,0.00011142,2]
[323732352,1714216247758,-500.0,0.00011142,2]
[323732353,1714216247766,-500.0,0.00011142,2]
[323732354,1714216247775,-500.0,0.00011142,2]
[323732355,1714216247785,-503.68,0.00011142,2]
[323732356,1714216247794,-394.77660634,0.00011142,2]
[323732357,1714216247820,-105.22339366,0.00011142,2]
[323732358,1714216247829,-242.55216147,0.00011142,2]
[323732359,1714216247840,-255.86501986,0.00011142,2]
[323732360,1714216247851,-1.58281867,0.00011142,2]
[323732361,1714216247859,-500.0,0.00011142,2]
[323732362,1714216247868,-500.69865642,0.00011142,2]
[323732363,1714216247878,-500.0,0.00011142,2]
[323732364,1714216247887,-100.59352491,0.00011142,2]
[323732365,1714216358948,152.72,8.276e-05,2]
[323732366,1714216898806,87203.2831007,8.276e-05,2]
[323732367,1714216898832,3535.0105707,8.276e-05,2]
[323732368,1714216967123,152.72,8.219e-05,2]
[323732410,1714217385901,-177.93,0.00010132,2]
[323732411,1714217385924,-164.46,0.00010135,2]
[323732412,1714217385944,-306.08,0.00010135,2]
[323732413,1714217385963,-630.09,0.00010141,2]
[323732414,1714217385983,-1634.38,0.0001063,10]
[323732415,1714217386003,-155.0,0.000109,2]
[323732416,1714217386024,-152.72,0.00010907,2]
[323732417,1714217395563,-2750.0,0.00011,3]
[323732418,1714217401594,-33622.6929,0.00011027,2]
[323732419,1714217414046,-1323.19,0.0001103,4]
[323732420,1714217414070,-150.0,0.00011039,2]
[323732421,1714217414091,-721.44,0.00011061,2]
[323732422,1714217414113,-499.99,0.00011065,2]
[323732423,1714217414133,-414.66,0.00011065,2]
[323732424,1714217414156,-150.0,0.0001109,2]
[323732425,1714217414178,-150.0,0.00011097,2]
[323732426,1714217414199,-910.83,0.000111,2]
[323732427,1714217414222,-910.83,0.000111,2]
[323732428,1714217414244,-910.83,0.000111,2]
[323732429,1714217414266,-818.86,0.000111,2]
[323732430,1714217414287,-150.0,0.00011101,2]
[323732431,1714217414309,-150.0,0.00011106,2]
[323732432,1714217414330,-150.0,0.00011113,2]
[323732433,1714217414351,-150.0,0.00011113,2]
[323732434,1714217414374,-1500.0,0.00011114,2]
[323732435,1714217414396,-150.0,0.00011115,2]
[323732436,1714217414416,-1500.0,0.00011118,2]
[323732437,1714217414437,-150.0,0.00011119,2]
[323732438,1714217414458,-150.0,0.00011122,2]
[323732439,1714217414479,-150.0,0.00011123,2]
[323732440,1714217414500,-150.0,0.00011123,2]
[323732441,1714217414520,-1000.0,0.00011127,2]
[323732442,1714217414540,-3726.53880467,0.00011129,2]
[323732443,1714217414560,-150.0,0.00011129,2]
[323732444,1714217414580,-342.06207084,0.00011129,2]
[323732445,1714217414600,-1500.0,0.00011135,2]
[323732455,1714217432504,-267.95,0.00011136,2]
[323732456,1714217432517,-232.05,0.00011136,2]
[323732457,1714217432526,-70.19106038,0.00011136,2]
[323732458,1714217432538,-429.80893962,0.00011136,2]
[323732459,1714217432547,-500.0,0.00011136,2]
[323732460,1714217432557,-444.71613317,0.00011136,2]
[323732461,1714217432575,-55.28386683,0.00011136,2]
[323732462,1714217432584,-500.0,0.00011136,2]
[323732463,1714217432593,-500.0,0.00011136,2]
[323732464,1714217432603,-502.22033365,0.00011136,2]
[323732465,1714217432612,-500.0,0.00011136,2]
[323732466,1714217432622,-500.0,0.00011136,2]
[323732467,1714217432631,-177.55,0.00011136,2]
[323732468,1714217432640,-500.0,0.00011136,2]
[323732469,1714217432649,-500.0,0.00011136,2]
[323732470,1714217432660,-500.0,0.00011136,2]
[323732471,1714217432669,-405.57062227,0.00011136,2]
[323732472,1714217432678,-500.0,0.00011136,2]
[323732473,1714217432689,-1405.87,0.00011136,2]
[323732474,1714217432699,-500.0,0.00011136,2]
[323732475,1714217432708,-500.0,0.00011136,2]
[323732476,1714217432717,-500.0,0.00011136,2]
[323732477,1714217432728,-500.0,0.00011136,2]
[323732478,1714217432741,-150.0,0.00011136,2]
[323732479,1714217432750,-500.0,0.00011136,2]
[323732480,1714217432759,-500.0,0.00011136,2]
[323732481,1714217432770,-1579.74,0.00011136,2]
[323732482,1714217432779,-500.0,0.00011136,2]
[323732484,1714217432788,-500.0,0.00011136,2]
[323732486,1714217432797,-92.96602585,0.00011136,2]
[323732489,1714217432809,-407.03397415,0.00011136,2]
[323732491,1714217432818,-226.95488758,0.00011136,2]
[323732494,1714217432843,-273.04511242,0.00011136,2]
[323732496,1714217432852,-500.0,0.00011136,2]
[323732498,1714217432860,-500.0,0.00011136,2]